[Event "Titled Tuesday Blitz April 18 Late 2023"]
[White "cryptoguru02"]
[Black "Mackster23"]
[WhiteElo "2603"]
[BlackElo "2428"]
[Result "1/2-1/2"]
[Round "05"]
[TimeControl "180+2"]
[Date "2023.04.18"]
[WhiteClock "0:00:05"]
[BlackClock "0:00:05"]

1. d4 {[%clk 0:03:00]}  Nf6 {[%clk 0:02:58]} 2. c4 {[%clk 0:03:00]}  g6 {[%clk 0:02:58]} 3. Nc3 {[%clk 0:03:00]}  Bg7 {[%clk 0:02:59]} 4. e4 {[%clk 0:03:00]}  O-O {[%clk 0:02:59]} 5. Be2 {[%clk 0:03:00]}  d6 {[%clk 0:02:59]} 6. Be3 {[%clk 0:02:59]}  c5 {[%clk 0:02:59]} 7. d5 {[%clk 0:02:53]}  e6 {[%clk 0:02:54]} 8. Nf3 {[%clk 0:02:53]}  exd5 {[%clk 0:02:53]} 9. cxd5 {[%clk 0:02:53]}  b5 {[%clk 0:02:39]} 10. e5 {[%clk 0:02:51]}  Ng4 {[%clk 0:02:22]} 11. Bg5 {[%clk 0:02:49]}  Qb6 {[%clk 0:01:47]} 12. exd6 {[%clk 0:02:48]}  c4 {[%clk 0:01:46]} 13. O-O {[%clk 0:02:42]}  Nd7 {[%clk 0:01:22]} 14. a4 {[%clk 0:02:40]}  b4 {[%clk 0:01:19]} 15. Ne4 {[%clk 0:02:39]}  Ba6 {[%clk 0:01:16]} 16. h3 {[%clk 0:02:03]}  f5 {[%clk 0:00:55]} 17. hxg4 {[%clk 0:01:48]}  fxe4 {[%clk 0:00:55]} 18. Nd2 {[%clk 0:01:48]}  Bxb2 {[%clk 0:00:45]} 19. Rb1 {[%clk 0:01:04]}  Bd4 {[%clk 0:00:43]} 20. Nxe4 {[%clk 0:00:57]}  Be5 {[%clk 0:00:13]} 21. Be3 {[%clk 0:00:47]}  Qa5 {[%clk 0:00:12]} 22. Ng5 {[%clk 0:00:19]}  Rfc8 {[%clk 0:00:09]} 23. Bd4 {[%clk 0:00:16]}  Qxd5 {[%clk 0:00:07]} 24. Bxe5 {[%clk 0:00:14]}  Qxe5 {[%clk 0:00:07]} 25. Nf3 {[%clk 0:00:11]}  Qg7 {[%clk 0:00:05]} 26. Rxb4 {[%clk 0:00:09]}  Qf7 {[%clk 0:00:01]} 27. Ng5 {[%clk 0:00:07]}  Qf6 {[%clk 0:00:01]} 28. Qd5+ {[%clk 0:00:07]}  Kh8 {[%clk 0:00:01]} 29. Ne4 {[%clk 0:00:06]}  Qe5 {[%clk 0:00:01]} 30. Qxe5+ {[%clk 0:00:06]}  Nxe5 {[%clk 0:00:02]} 31. Rc1 {[%clk 0:00:06]}  Rc6 {[%clk 0:00:01]} 32. f4 {[%clk 0:00:04]}  Nd7 {[%clk 0:00:01]} 33. Kf2 {[%clk 0:00:04]}  Rac8 {[%clk 0:00:01]} 34. Ke3 {[%clk 0:00:05]}  c3 {[%clk 0:00:01]} 35. Bxa6 {[%clk 0:00:03]}  Rxa6 {[%clk 0:00:02]} 36. Rxc3 {[%clk 0:00:03]}  Rxc3+ {[%clk 0:00:01]} 37. Nxc3 {[%clk 0:00:04]}  Rxd6 {[%clk 0:00:02]} 38. Rb7 {[%clk 0:00:05]}  Nc5 {[%clk 0:00:02]} 39. Rc7 {[%clk 0:00:05]}  Rd3+ {[%clk 0:00:02]} 40. Ke2 {[%clk 0:00:05]}  Rxc3 {[%clk 0:00:03]} 41. Rc8+ {[%clk 0:00:05]}  Kg7 {[%clk 0:00:04]} 42. Rc7+ {[%clk 0:00:06]}  Kf6 {[%clk 0:00:04]} 43. Rxa7 {[%clk 0:00:07]}  Ne4 {[%clk 0:00:04]} 44. a5 {[%clk 0:00:06]}  Ra3 {[%clk 0:00:03]} 45. Ra6+ {[%clk 0:00:06]}  Kg7 {[%clk 0:00:03]} 46. Ra7+ {[%clk 0:00:07]}  Kf6 {[%clk 0:00:04]} 47. Rxh7 {[%clk 0:00:07]}  Rxa5 {[%clk 0:00:03]} 48. Rb7 {[%clk 0:00:06]}  Nd6 {[%clk 0:00:03]} 49. Rb6 {[%clk 0:00:06]}  Ke6 {[%clk 0:00:04]} 50. Kf3 {[%clk 0:00:05]}  Ra3+ {[%clk 0:00:04]} 51. Kf2 {[%clk 0:00:05]}  Ke7 {[%clk 0:00:04]} 52. Rc6 {[%clk 0:00:05]}  Ra2+ {[%clk 0:00:04]} 53. Kg3 {[%clk 0:00:05]}  Ra3+ {[%clk 0:00:05]} 54. Kh4 {[%clk 0:00:05]}  Ra2 {[%clk 0:00:05]} 55. Kg5 {[%clk 0:00:05]}  Rxg2 {[%clk 0:00:05]} 56. Rc7+ {[%clk 0:00:05]}  Ke6 {[%clk 0:00:05]} 57. Rc6 {[%clk 0:00:05]}  Rg1 {[%clk 0:00:05]} 58. Ra6 {[%clk 0:00:05]}  Kd5 {[%clk 0:00:04]} 59. Ra5+ {[%clk 0:00:03]}  Ke6 {[%clk 0:00:04]} 60. Ra6 {[%clk 0:00:04]}  Ke7 {[%clk 0:00:05]} 61. Ra7+ {[%clk 0:00:04]}  Ke6 {[%clk 0:00:05]} 62. Ra6 {[%clk 0:00:05]} 1/2-1/2


[Site "https://www.chess.com"]

[Event "Titled Tuesday Blitz April 18 Late 2023"]
[White "Papayan, Oleg"]
[Black "Janaszak, Dawid"]
[WhiteFideId "4193911"]
[BlackFideId "1119206"]
[WhiteElo "2153"]
[BlackElo "2220"]
[Result "0-1"]
[Round "05"]
[TimeControl "180+2"]
[Date "2023.04.18"]
[WhiteClock "0:00:03"]
[BlackClock "0:00:10"]

1. e4 {[%clk 0:03:00]}  c5 {[%clk 0:03:00]} 2. d4 {[%clk 0:02:59]}  cxd4 {[%clk 0:02:59]} 3. Qxd4 {[%clk 0:03:00]}  Nc6 {[%clk 0:02:58]} 4. Qd3 {[%clk 0:03:01]}  Nf6 {[%clk 0:02:55]} 5. Nc3 {[%clk 0:03:02]}  g6 {[%clk 0:02:52]} 6. Nf3 {[%clk 0:03:02]}  Bg7 {[%clk 0:02:53]} 7. Be2 {[%clk 0:03:03]}  O-O {[%clk 0:02:51]} 8. O-O {[%clk 0:03:03]}  d5 {[%clk 0:02:46]} 9. Nxd5 {[%clk 0:02:58]}  Nxd5 {[%clk 0:02:46]} 10. exd5 {[%clk 0:02:58]}  Nb4 {[%clk 0:02:45]} 11. Qb3 {[%clk 0:02:59]}  a5 {[%clk 0:02:20]} 12. c3 {[%clk 0:02:58]}  Na6 {[%clk 0:01:58]} 13. Be3 {[%clk 0:02:59]}  a4 {[%clk 0:01:54]} 14. Qxa4 {[%clk 0:02:48]}  Qxd5 {[%clk 0:01:52]} 15. Rfd1 {[%clk 0:02:40]}  Qh5 {[%clk 0:01:44]} 16. Qb5 {[%clk 0:02:34]}  Qxb5 {[%clk 0:01:26]} 17. Bxb5 {[%clk 0:02:35]}  Bg4 {[%clk 0:01:26]} 18. Be2 {[%clk 0:02:25]}  e5 {[%clk 0:01:19]} 19. h3 {[%clk 0:02:24]}  Bf5 {[%clk 0:01:18]} 20. Nh4 {[%clk 0:02:02]}  Be6 {[%clk 0:01:16]} 21. Bf3 {[%clk 0:02:01]}  Rab8 {[%clk 0:01:03]} 22. Bd5 {[%clk 0:01:51]}  Nc7 {[%clk 0:00:57]} 23. Bxe6 {[%clk 0:01:28]}  Nxe6 {[%clk 0:00:57]} 24. Nf3 {[%clk 0:01:29]}  b5 {[%clk 0:00:57]} 25. Rd5 {[%clk 0:01:21]}  b4 {[%clk 0:00:56]} 26. Nxe5 {[%clk 0:01:17]}  bxc3 {[%clk 0:00:49]} 27. bxc3 {[%clk 0:01:18]}  Rfc8 {[%clk 0:00:47]} 28. Bd4 {[%clk 0:01:10]}  Rb2 {[%clk 0:00:38]} 29. a4 {[%clk 0:01:04]}  Nf4 {[%clk 0:00:34]} 30. Rb5 {[%clk 0:00:56]}  Re2 {[%clk 0:00:28]} 31. Nf3 {[%clk 0:00:43]}  Bxd4 {[%clk 0:00:17]} 32. cxd4 {[%clk 0:00:43]}  Rcc2 {[%clk 0:00:16]} 33. Rf1 {[%clk 0:00:29]}  Ra2 {[%clk 0:00:16]} 34. a5 {[%clk 0:00:28]}  Nd3 {[%clk 0:00:16]} 35. Ne5 {[%clk 0:00:20]}  Nxf2 {[%clk 0:00:14]} 36. Kh2 {[%clk 0:00:07]}  Ne4 {[%clk 0:00:11]} 37. Rg1 {[%clk 0:00:02]}  Nd2 {[%clk 0:00:11]} 38. Rb8+ {[%clk 0:00:02]}  Kg7 {[%clk 0:00:11]} 39. Rb7 {[%clk 0:00:03]}  Rf2 {[%clk 0:00:11]} 40. Rb5 {[%clk 0:00:02]}  Nf1+ {[%clk 0:00:09]} 41. Kh1 {[%clk 0:00:01]}  Ng3+ {[%clk 0:00:09]} 42. Kh2 {[%clk 0:00:02]}  Ne2 {[%clk 0:00:09]} 43. Kh1 {[%clk 0:00:02]}  Nxg1 {[%clk 0:00:09]} 44. Kxg1 {[%clk 0:00:03]}  Rxg2+ {[%clk 0:00:09]} 45. Kf1 {[%clk 0:00:04]}  Rgd2 {[%clk 0:00:10]} 46. Rb7 {[%clk 0:00:03]}  Rd1# {[%clk 0:00:10]} 0-1


[Site "https://www.chess.com"]

[Event "Titled Tuesday Blitz April 18 Late 2023"]
[White "Vlassov, Nikolai"]
[Black "Yeritsyan, Hayk"]
[WhiteFideId "4103360"]
[BlackFideId "13307320"]
[WhiteElo "2324"]
[BlackElo "2407"]
[Result "1-0"]
[Round "05"]
[TimeControl "180+2"]
[Date "2023.04.18"]
[WhiteClock "0:00:05"]
[BlackClock "0:00:02"]

1. e4 {[%clk 0:03:00]}  c6 {[%clk 0:02:41]} 2. d4 {[%clk 0:03:00]}  d5 {[%clk 0:02:41]} 3. e5 {[%clk 0:03:00]}  c5 {[%clk 0:02:41]} 4. dxc5 {[%clk 0:03:00]}  e6 {[%clk 0:02:41]} 5. Nf3 {[%clk 0:03:01]}  Bxc5 {[%clk 0:02:41]} 6. a3 {[%clk 0:03:01]}  Nc6 {[%clk 0:02:40]} 7. Bd3 {[%clk 0:03:01]}  Nge7 {[%clk 0:02:40]} 8. b4 {[%clk 0:02:56]}  Bb6 {[%clk 0:02:39]} 9. Bb2 {[%clk 0:02:49]}  Ng6 {[%clk 0:02:36]} 10. Nbd2 {[%clk 0:02:47]}  Bc7 {[%clk 0:02:32]} 11. Bxg6 {[%clk 0:02:34]}  hxg6 {[%clk 0:02:31]} 12. c4 {[%clk 0:02:30]}  Rh5 {[%clk 0:02:13]} 13. Qe2 {[%clk 0:02:25]}  Kf8 {[%clk 0:01:49]} 14. Rd1 {[%clk 0:02:20]}  Kg8 {[%clk 0:01:46]} 15. h4 {[%clk 0:02:00]}  Qe8 {[%clk 0:01:25]} 16. g4 {[%clk 0:01:54]}  Rh7 {[%clk 0:01:22]} 17. Ng5 {[%clk 0:01:47]}  Rh8 {[%clk 0:01:17]} 18. f4 {[%clk 0:01:46]}  Bd8 {[%clk 0:00:55]} 19. Ndf3 {[%clk 0:01:36]}  dxc4 {[%clk 0:00:50]} 20. Qxc4 {[%clk 0:01:34]}  Ne7 {[%clk 0:00:47]} 21. Qd4 {[%clk 0:01:23]}  Bb6 {[%clk 0:00:41]} 22. Qd3 {[%clk 0:01:14]}  Nd5 {[%clk 0:00:38]} 23. f5 {[%clk 0:01:00]}  Bd7 {[%clk 0:00:24]} 24. Bd4 {[%clk 0:00:48]}  Bb5 {[%clk 0:00:21]} 25. Qe4 {[%clk 0:00:46]}  Bc6 {[%clk 0:00:20]} 26. b5 {[%clk 0:00:37]}  Bxb5 {[%clk 0:00:19]} 27. Bxb6 {[%clk 0:00:27]}  axb6 {[%clk 0:00:15]} 28. fxg6 {[%clk 0:00:20]}  fxg6 {[%clk 0:00:13]} 29. Rc1 {[%clk 0:00:12]}  Rxa3 {[%clk 0:00:11]} 30. Kf2 {[%clk 0:00:12]}  Ra2+ {[%clk 0:00:11]} 31. Kg3 {[%clk 0:00:13]}  Bc6 {[%clk 0:00:11]} 32. Nd4 {[%clk 0:00:11]}  Ra4 {[%clk 0:00:10]} 33. Ngf3 {[%clk 0:00:11]}  Ne7 {[%clk 0:00:09]} 34. Qe3 {[%clk 0:00:09]}  Nd5 {[%clk 0:00:08]} 35. Qg5 {[%clk 0:00:08]}  Qe7 {[%clk 0:00:07]} 36. Nxc6 {[%clk 0:00:07]}  bxc6 {[%clk 0:00:05]} 37. Rxc6 {[%clk 0:00:07]}  Qxg5 {[%clk 0:00:04]} 38. Nxg5 {[%clk 0:00:08]}  Ra8 {[%clk 0:00:03]} 39. Rhc1 {[%clk 0:00:07]}  Ra3+ {[%clk 0:00:03]} 40. Kf2 {[%clk 0:00:06]}  Ne7 {[%clk 0:00:03]} 41. Rc8+ {[%clk 0:00:05]}  Nxc8 {[%clk 0:00:02]} 42. Rxc8# {[%clk 0:00:05]} 1-0


[Site "https://www.chess.com"]

[Event "Titled Tuesday Blitz April 18 Late 2023"]
[White "Vovk, Orest"]
[Black "Gonzalez, Francisco Silva"]
[WhiteFideId "14113490"]
[BlackFideId "1512285"]
[WhiteElo "2215"]
[BlackElo "2074"]
[Result "1-0"]
[Round "05"]
[TimeControl "180+2"]
[Date "2023.04.18"]
[WhiteClock "0:00:12"]
[BlackClock "0:01:33"]

1. c4 {[%clk 0:02:57]}  e6 {[%clk 0:03:00]} 2. Nc3 {[%clk 0:02:56]}  d5 {[%clk 0:03:00]} 3. cxd5 {[%clk 0:02:54]}  exd5 {[%clk 0:02:59]} 4. d4 {[%clk 0:02:55]}  Nf6 {[%clk 0:02:59]} 5. Nf3 {[%clk 0:02:55]}  Be6 {[%clk 0:02:59]} 6. g3 {[%clk 0:02:55]}  Be7 {[%clk 0:02:57]} 7. Bg2 {[%clk 0:02:55]}  h6 {[%clk 0:02:58]} 8. O-O {[%clk 0:02:56]}  O-O {[%clk 0:02:58]} 9. Bf4 {[%clk 0:02:53]}  a5 {[%clk 0:02:56]} 10. Nb5 {[%clk 0:02:49]}  c6 {[%clk 0:02:55]} 11. Nc7 {[%clk 0:02:49]}  Ra7 {[%clk 0:02:55]} 12. Nxe6 {[%clk 0:02:48]}  fxe6 {[%clk 0:02:56]} 13. Ne5 {[%clk 0:02:24]}  g5 {[%clk 0:02:51]} 14. Be3 {[%clk 0:02:18]}  Kg7 {[%clk 0:02:49]} 15. Qc2 {[%clk 0:02:15]}  Qe8 {[%clk 0:02:47]} 16. f4 {[%clk 0:02:14]}  g4 {[%clk 0:02:30]} 17. f5 {[%clk 0:02:13]}  Na6 {[%clk 0:02:07]} 18. fxe6 {[%clk 0:02:08]}  Nb4 {[%clk 0:02:06]} 19. Qf5 {[%clk 0:02:05]}  Qh5 {[%clk 0:02:07]} 20. Qxh5 {[%clk 0:01:56]}  Nxh5 {[%clk 0:02:05]} 21. Rxf8 {[%clk 0:01:56]}  Bxf8 {[%clk 0:02:03]} 22. Rf1 {[%clk 0:01:56]}  Kg8 {[%clk 0:02:01]} 23. Rf7 {[%clk 0:01:15]}  Nc2 {[%clk 0:01:54]} 24. Bf2 {[%clk 0:01:00]}  Ra8 {[%clk 0:01:53]} 25. e4 {[%clk 0:00:25]}  Ng7 {[%clk 0:01:44]} 26. e7 {[%clk 0:00:21]}  Bxe7 {[%clk 0:01:42]} 27. Rxe7 {[%clk 0:00:21]}  Kf8 {[%clk 0:01:40]} 28. Rxb7 {[%clk 0:00:20]}  Rd8 {[%clk 0:01:38]} 29. Nxc6 {[%clk 0:00:18]}  Rd6 {[%clk 0:01:38]} 30. exd5 {[%clk 0:00:18]}  Nb4 {[%clk 0:01:36]} 31. Nxb4 {[%clk 0:00:17]}  axb4 {[%clk 0:01:36]} 32. Rb8+ {[%clk 0:00:18]}  Kf7 {[%clk 0:01:35]} 33. Rxb4 {[%clk 0:00:19]}  Nf5 {[%clk 0:01:35]} 34. a4 {[%clk 0:00:16]}  h5 {[%clk 0:01:35]} 35. a5 {[%clk 0:00:16]}  Ra6 {[%clk 0:01:35]} 36. Rb5 {[%clk 0:00:16]}  Nd6 {[%clk 0:01:35]} 37. Rb6 {[%clk 0:00:16]}  Rxa5 {[%clk 0:01:35]} 38. Rxd6 {[%clk 0:00:16]}  Ra1+ {[%clk 0:01:36]} 39. Bf1 {[%clk 0:00:16]}  Rb1 {[%clk 0:01:36]} 40. Rb6 {[%clk 0:00:16]}  h4 {[%clk 0:01:34]} 41. gxh4 {[%clk 0:00:16]}  Kg7 {[%clk 0:01:35]} 42. Kg2 {[%clk 0:00:16]}  Rd1 {[%clk 0:01:34]} 43. d6 {[%clk 0:00:16]}  Rd2 {[%clk 0:01:34]} 44. d7 {[%clk 0:00:16]}  g3 {[%clk 0:01:34]} 45. hxg3 {[%clk 0:00:16]}  Rxd4 {[%clk 0:01:34]} 46. Bxd4+ {[%clk 0:00:16]}  Kf7 {[%clk 0:01:35]} 47. Bf2 {[%clk 0:00:13]}  Kg7 {[%clk 0:01:33]} 48. d8=Q {[%clk 0:00:12]} 1-0


[Site "https://www.chess.com"]

[Event "Titled Tuesday Blitz April 18 Late 2023"]
[White "Gerbelli Neto, Eduardo"]
[Black "Srinath, Rao S.V."]
[WhiteFideId "2103281"]
[BlackFideId "5028876"]
[WhiteElo "2178"]
[BlackElo "2196"]
[Result "0-1"]
[Round "05"]
[TimeControl "180+2"]
[Date "2023.04.18"]
[WhiteClock "0:00:23"]
[BlackClock "0:00:11"]

1. e4 {[%clk 0:03:00]}  e5 {[%clk 0:02:59]} 2. Nf3 {[%clk 0:03:00]}  Nc6 {[%clk 0:02:59]} 3. d4 {[%clk 0:03:00]}  exd4 {[%clk 0:02:56]} 4. Nxd4 {[%clk 0:03:01]}  Qh4 {[%clk 0:02:48]} 5. Nc3 {[%clk 0:02:56]}  Bb4 {[%clk 0:02:45]} 6. Nb5 {[%clk 0:02:57]}  Qxe4+ {[%clk 0:01:51]} 7. Qe2 {[%clk 0:02:54]}  Qxe2+ {[%clk 0:01:50]} 8. Bxe2 {[%clk 0:02:55]}  Bxc3+ {[%clk 0:01:41]} 9. bxc3 {[%clk 0:02:52]}  Kd8 {[%clk 0:01:40]} 10. Bf4 {[%clk 0:02:46]}  d6 {[%clk 0:01:40]} 11. O-O-O {[%clk 0:02:46]}  Be6 {[%clk 0:01:24]} 12. c4 {[%clk 0:02:35]}  a6 {[%clk 0:01:18]} 13. Nd4 {[%clk 0:02:33]}  Nxd4 {[%clk 0:01:18]} 14. Rxd4 {[%clk 0:02:34]}  Ne7 {[%clk 0:01:07]} 15. c5 {[%clk 0:02:22]}  d5 {[%clk 0:01:06]} 16. Bf3 {[%clk 0:01:55]}  Kd7 {[%clk 0:00:58]} 17. c4 {[%clk 0:01:53]}  c6 {[%clk 0:00:56]} 18. g4 {[%clk 0:01:46]}  Ke8 {[%clk 0:00:37]} 19. Bd6 {[%clk 0:01:43]}  dxc4 {[%clk 0:00:32]} 20. Re1 {[%clk 0:01:33]}  Rd8 {[%clk 0:00:26]} 21. Be2 {[%clk 0:01:11]}  Nc8 {[%clk 0:00:20]} 22. Bxc4 {[%clk 0:01:09]}  Nxd6 {[%clk 0:00:19]} 23. cxd6 {[%clk 0:01:10]}  Kd7 {[%clk 0:00:18]} 24. Bxe6+ {[%clk 0:01:01]}  fxe6 {[%clk 0:00:19]} 25. Rde4 {[%clk 0:00:56]}  Rhe8 {[%clk 0:00:19]} 26. f4 {[%clk 0:00:53]}  Kxd6 {[%clk 0:00:19]} 27. f5 {[%clk 0:00:53]}  e5 {[%clk 0:00:19]} 28. Rd1+ {[%clk 0:00:48]}  Kc7 {[%clk 0:00:19]} 29. Rde1 {[%clk 0:00:48]}  Rd5 {[%clk 0:00:17]} 30. g5 {[%clk 0:00:48]}  Kd6 {[%clk 0:00:17]} 31. h4 {[%clk 0:00:45]}  Rf8 {[%clk 0:00:16]} 32. Rf1 {[%clk 0:00:44]}  Rd4 {[%clk 0:00:17]} 33. Rxd4+ {[%clk 0:00:40]}  exd4 {[%clk 0:00:18]} 34. Kd2 {[%clk 0:00:41]}  Ke5 {[%clk 0:00:18]} 35. f6 {[%clk 0:00:39]}  gxf6 {[%clk 0:00:17]} 36. Re1+ {[%clk 0:00:40]}  Kd6 {[%clk 0:00:16]} 37. Rf1 {[%clk 0:00:40]}  Ke6 {[%clk 0:00:14]} 38. Kd3 {[%clk 0:00:38]}  Rf7 {[%clk 0:00:13]} 39. Re1+ {[%clk 0:00:37]}  Kd7 {[%clk 0:00:13]} 40. Rf1 {[%clk 0:00:34]}  Ke7 {[%clk 0:00:12]} 41. Re1+ {[%clk 0:00:34]}  Kf8 {[%clk 0:00:11]} 42. gxf6 {[%clk 0:00:33]}  Rxf6 {[%clk 0:00:12]} 43. Kxd4 {[%clk 0:00:34]}  Rf4+ {[%clk 0:00:12]} 44. Kc5 {[%clk 0:00:35]}  Rxh4 {[%clk 0:00:12]} 45. Kb6 {[%clk 0:00:31]}  Rb4+ {[%clk 0:00:13]} 46. Kc7 {[%clk 0:00:32]}  Rb2 {[%clk 0:00:12]} 47. a4 {[%clk 0:00:32]}  h5 {[%clk 0:00:11]} 48. Re4 {[%clk 0:00:31]}  Kf7 {[%clk 0:00:11]} 49. Kd6 {[%clk 0:00:31]}  Kf6 {[%clk 0:00:12]} 50. Rf4+ {[%clk 0:00:29]}  Kg5 {[%clk 0:00:12]} 51. Re4 {[%clk 0:00:28]}  h4 {[%clk 0:00:12]} 52. Re7 {[%clk 0:00:25]}  h3 {[%clk 0:00:13]} 53. Rh7 {[%clk 0:00:25]}  h2 {[%clk 0:00:12]} 54. Kc5 {[%clk 0:00:26]}  b5 {[%clk 0:00:11]} 55. Kxc6 {[%clk 0:00:23]}  bxa4 {[%clk 0:00:11]} 0-1


[Site "https://www.chess.com"]

[Event "Titled Tuesday Blitz April 18 Late 2023"]
[White "Ansh M Shah"]
[Black "MKlose11"]
[WhiteFideId "25033379"]
[WhiteElo "2084"]
[BlackElo "2574"]
[Result "0-1"]
[Round "05"]
[TimeControl "180+2"]
[Date "2023.04.18"]
[WhiteClock "0:00:08"]
[BlackClock "0:00:38"]

1. d4 {[%clk 0:02:57]}  Nf6 {[%clk 0:02:59]} 2. c4 {[%clk 0:02:57]}  c5 {[%clk 0:03:00]} 3. d5 {[%clk 0:02:58]}  b5 {[%clk 0:03:00]} 4. cxb5 {[%clk 0:02:59]}  a6 {[%clk 0:03:01]} 5. e3 {[%clk 0:02:59]}  g6 {[%clk 0:03:00]} 6. Nc3 {[%clk 0:03:00]}  Bg7 {[%clk 0:03:01]} 7. Nf3 {[%clk 0:03:00]}  O-O {[%clk 0:03:01]} 8. a4 {[%clk 0:03:01]}  d6 {[%clk 0:03:02]} 9. e4 {[%clk 0:02:59]}  Nbd7 {[%clk 0:02:59]} 10. Bg5 {[%clk 0:02:57]}  Ne8 {[%clk 0:02:54]} 11. Qd2 {[%clk 0:02:56]}  Nc7 {[%clk 0:02:53]} 12. Bh6 {[%clk 0:02:55]}  axb5 {[%clk 0:02:50]} 13. Nxb5 {[%clk 0:02:53]}  Nxb5 {[%clk 0:02:26]} 14. Bxg7 {[%clk 0:02:52]}  Kxg7 {[%clk 0:02:16]} 15. Bxb5 {[%clk 0:02:52]}  Ba6 {[%clk 0:02:15]} 16. Bxa6 {[%clk 0:02:40]}  Rxa6 {[%clk 0:02:02]} 17. O-O {[%clk 0:02:23]}  Qb6 {[%clk 0:02:00]} 18. a5 {[%clk 0:02:16]}  Qb5 {[%clk 0:01:58]} 19. Qc3+ {[%clk 0:02:16]}  f6 {[%clk 0:01:58]} 20. Ra3 {[%clk 0:02:15]}  Rb8 {[%clk 0:01:58]} 21. Ra2 {[%clk 0:02:08]}  Qb3 {[%clk 0:01:54]} 22. Rfa1 {[%clk 0:01:55]}  Rb5 {[%clk 0:01:51]} 23. Ng5 {[%clk 0:00:53]}  Nf8 {[%clk 0:01:38]} 24. Nf3 {[%clk 0:00:39]}  Kf7 {[%clk 0:01:36]} 25. h3 {[%clk 0:00:30]}  Nd7 {[%clk 0:01:36]} 26. Nd2 {[%clk 0:00:29]}  Qb4 {[%clk 0:01:33]} 27. Nc4 {[%clk 0:00:24]}  Qb3 {[%clk 0:01:24]} 28. Ra3 {[%clk 0:00:18]}  Qb4 {[%clk 0:01:20]} 29. Ra4 {[%clk 0:00:14]}  Qxc3 {[%clk 0:01:10]} 30. bxc3 {[%clk 0:00:15]}  f5 {[%clk 0:01:11]} 31. f3 {[%clk 0:00:13]}  fxe4 {[%clk 0:01:11]} 32. fxe4 {[%clk 0:00:14]}  Nf6 {[%clk 0:01:11]} 33. e5 {[%clk 0:00:14]}  Nxd5 {[%clk 0:01:08]} 34. exd6 {[%clk 0:00:15]}  exd6 {[%clk 0:01:08]} 35. R4a3 {[%clk 0:00:13]}  Nf6 {[%clk 0:00:54]} 36. Rd1 {[%clk 0:00:13]}  d5 {[%clk 0:00:53]} 37. Ne5+ {[%clk 0:00:13]}  Ke6 {[%clk 0:00:51]} 38. c4 {[%clk 0:00:08]}  Rbxa5 {[%clk 0:00:38]} 0-1


[Site "https://www.chess.com"]

[Event "Titled Tuesday Blitz April 18 Late 2023"]
[White "Szyszylo, Rafal"]
[Black "Melikyan, Gnel"]
[WhiteFideId "1109626"]
[BlackFideId "54109990"]
[WhiteElo "1951"]
[BlackElo "2138"]
[Result "0-1"]
[Round "05"]
[TimeControl "180+2"]
[Date "2023.04.18"]
[WhiteClock "0:00:04"]
[BlackClock "0:00:42"]

1. e4 {[%clk 0:03:00]}  d5 {[%clk 0:02:57]} 2. exd5 {[%clk 0:03:00]}  Qxd5 {[%clk 0:02:57]} 3. Nf3 {[%clk 0:03:01]}  Nf6 {[%clk 0:02:57]} 4. Be2 {[%clk 0:03:00]}  g6 {[%clk 0:02:57]} 5. d4 {[%clk 0:02:59]}  Bg7 {[%clk 0:02:57]} 6. c4 {[%clk 0:02:59]}  Qd6 {[%clk 0:02:56]} 7. Qb3 {[%clk 0:02:57]}  O-O {[%clk 0:02:52]} 8. Nc3 {[%clk 0:02:56]}  c6 {[%clk 0:02:45]} 9. O-O {[%clk 0:02:51]}  Nbd7 {[%clk 0:02:37]} 10. Rd1 {[%clk 0:02:48]}  Qc7 {[%clk 0:02:33]} 11. d5 {[%clk 0:02:18]}  cxd5 {[%clk 0:02:30]} 12. cxd5 {[%clk 0:02:11]}  Nb6 {[%clk 0:02:24]} 13. Be3 {[%clk 0:02:03]}  Rd8 {[%clk 0:02:18]} 14. Rd2 {[%clk 0:02:03]}  Bf5 {[%clk 0:02:16]} 15. Rad1 {[%clk 0:02:03]}  Ne4 {[%clk 0:02:10]} 16. Nxe4 {[%clk 0:02:02]}  Bxe4 {[%clk 0:02:11]} 17. g3 {[%clk 0:01:06]}  Rac8 {[%clk 0:01:46]} 18. Bf4 {[%clk 0:01:03]}  Qc5 {[%clk 0:01:33]} 19. d6 {[%clk 0:00:47]}  e6 {[%clk 0:01:25]} 20. Bg5 {[%clk 0:00:31]}  Rd7 {[%clk 0:01:14]} 21. Be7 {[%clk 0:00:31]}  Nd5 {[%clk 0:01:09]} 22. Ng5 {[%clk 0:00:27]}  Bc2 {[%clk 0:01:05]} 23. Rc1 {[%clk 0:00:12]}  Bxb3 {[%clk 0:01:03]} 24. Rxc5 {[%clk 0:00:13]}  Rxc5 {[%clk 0:01:03]} 25. axb3 {[%clk 0:00:13]}  Bf8 {[%clk 0:00:48]} 26. Ne4 {[%clk 0:00:13]}  Rc1+ {[%clk 0:00:48]} 27. Kg2 {[%clk 0:00:12]}  Bxe7 {[%clk 0:00:46]} 28. dxe7 {[%clk 0:00:11]}  Rxe7 {[%clk 0:00:46]} 29. Bc4 {[%clk 0:00:08]}  Kg7 {[%clk 0:00:46]} 30. Nc5 {[%clk 0:00:02]}  Rc7 {[%clk 0:00:43]} 31. Bxd5 {[%clk 0:00:02]}  R1xc5 {[%clk 0:00:42]} 32. Bc4 {[%clk 0:00:02]}  Rxc4 {[%clk 0:00:41]} 33. bxc4 {[%clk 0:00:02]}  Rxc4 {[%clk 0:00:42]} 34. Rd3 {[%clk 0:00:02]}  Rb4 {[%clk 0:00:42]} 35. b3 {[%clk 0:00:02]}  b5 {[%clk 0:00:43]} 36. Kf3 {[%clk 0:00:03]}  a5 {[%clk 0:00:43]} 37. Ke3 {[%clk 0:00:03]}  a4 {[%clk 0:00:43]} 38. bxa4 {[%clk 0:00:04]}  bxa4 {[%clk 0:00:44]} 39. Rd7 {[%clk 0:00:04]}  Rb3+ {[%clk 0:00:43]} 40. Ke4 {[%clk 0:00:03]}  Rb2 {[%clk 0:00:43]} 41. Ke3 {[%clk 0:00:03]}  a3 {[%clk 0:00:44]} 42. Ra7 {[%clk 0:00:03]}  a2 {[%clk 0:00:44]} 43. h4 {[%clk 0:00:02]}  h5 {[%clk 0:00:43]} 44. f3 {[%clk 0:00:02]}  Kf6 {[%clk 0:00:41]} 45. g4 {[%clk 0:00:02]}  hxg4 {[%clk 0:00:40]} 46. fxg4 {[%clk 0:00:03]}  Rh2 {[%clk 0:00:40]} 47. g5+ {[%clk 0:00:04]}  Ke5 {[%clk 0:00:38]} 48. Kf3 {[%clk 0:00:04]}  Kd4 {[%clk 0:00:37]} 49. Kg3 {[%clk 0:00:03]}  Rb2 {[%clk 0:00:38]} 50. Ra4+ {[%clk 0:00:03]}  Kc3 {[%clk 0:00:38]} 51. Kg4 {[%clk 0:00:03]}  Kc2 {[%clk 0:00:38]} 52. h5 {[%clk 0:00:03]}  gxh5+ {[%clk 0:00:38]} 53. Kxh5 {[%clk 0:00:03]}  Kb1 {[%clk 0:00:39]} 54. Kh6 {[%clk 0:00:04]}  Rg2 {[%clk 0:00:38]} 55. Kg7 {[%clk 0:00:02]}  Rxg5+ {[%clk 0:00:38]} 56. Kxf7 {[%clk 0:00:03]}  a1=Q {[%clk 0:00:38]} 57. Rxa1+ {[%clk 0:00:02]}  Kxa1 {[%clk 0:00:39]} 58. Kxe6 {[%clk 0:00:03]}  Kb2 {[%clk 0:00:39]} 59. Kf6 {[%clk 0:00:03]}  Rg2 {[%clk 0:00:40]} 60. Kf5 {[%clk 0:00:03]}  Re2 {[%clk 0:00:40]} 61. Kf4 {[%clk 0:00:03]}  Kc3 {[%clk 0:00:41]} 62. Kf3 {[%clk 0:00:04]}  Kd3 {[%clk 0:00:42]} 0-1


[Site "https://www.chess.com"]